[Event "Titled Tuesday Blitz October 19 2021"]
[White "Shipov, Sergei"]
[Black "Langrock, Hannes"]
[WhiteFideId "4113624"]
[BlackFideId "4655290"]
[WhiteElo "2781"]
[BlackElo "2325"]
[Result "1-0"]
[Round "07"]
[TimeControl "180+1"]
[Date "2021.10.19"]
[WhiteClock "0:01:16"]
[BlackClock "0:00:14"]

1. d4 {[%clk 0:03:00]}  f5 {[%clk 0:02:58]} 2. g3 {[%clk 0:02:58]}  Nf6 {[%clk 0:02:58]} 3. Bg2 {[%clk 0:02:58]}  g6 {[%clk 0:02:59]} 4. b4 {[%clk 0:02:58]}  Bg7 {[%clk 0:02:55]} 5. Bb2 {[%clk 0:02:59]}  c6 {[%clk 0:02:48]} 6. Nf3 {[%clk 0:02:58]}  O-O {[%clk 0:02:47]} 7. O-O {[%clk 0:02:57]}  d5 {[%clk 0:02:48]} 8. Nbd2 {[%clk 0:02:56]}  Kh8 {[%clk 0:02:36]} 9. c4 {[%clk 0:02:56]}  Be6 {[%clk 0:02:31]} 10. Qc2 {[%clk 0:02:56]}  Nbd7 {[%clk 0:02:29]} 11. a4 {[%clk 0:02:54]}  Ne4 {[%clk 0:02:20]} 12. c5 {[%clk 0:02:53]}  Bg8 {[%clk 0:02:14]} 13. e3 {[%clk 0:02:52]}  e5 {[%clk 0:02:09]} 14. Nb3 {[%clk 0:02:46]}  exd4 {[%clk 0:02:04]} 15. Bxd4 {[%clk 0:02:45]}  Qe7 {[%clk 0:02:01]} 16. Na5 {[%clk 0:02:38]}  Ndf6 {[%clk 0:01:52]} 17. Qb2 {[%clk 0:02:33]}  a6 {[%clk 0:01:34]} 18. Ne5 {[%clk 0:02:17]}  Ne8 {[%clk 0:01:19]} 19. Rad1 {[%clk 0:02:05]}  N4f6 {[%clk 0:01:07]} 20. Rfe1 {[%clk 0:02:03]}  Ng4 {[%clk 0:01:05]} 21. Nf3 {[%clk 0:01:57]}  Rb8 {[%clk 0:01:02]} 22. h3 {[%clk 0:01:55]}  Ngf6 {[%clk 0:01:01]} 23. Be5 {[%clk 0:01:55]}  Nd7 {[%clk 0:00:56]} 24. Bxg7+ {[%clk 0:01:51]}  Qxg7 {[%clk 0:00:54]} 25. Qxg7+ {[%clk 0:01:50]}  Kxg7 {[%clk 0:00:54]} 26. Nd4 {[%clk 0:01:51]}  Ne5 {[%clk 0:00:51]} 27. f4 {[%clk 0:01:43]}  Nf7 {[%clk 0:00:43]} 28. Ne6+ {[%clk 0:01:39]}  Kf6 {[%clk 0:00:41]} 29. Nxf8 {[%clk 0:01:39]}  Ke7 {[%clk 0:00:41]} 30. Nxh7 {[%clk 0:01:31]}  Bxh7 {[%clk 0:00:41]} 31. g4 {[%clk 0:01:31]}  Nd8 {[%clk 0:00:33]} 32. b5 {[%clk 0:01:28]}  axb5 {[%clk 0:00:30]} 33. axb5 {[%clk 0:01:28]}  Ra8 {[%clk 0:00:31]} 34. Nb3 {[%clk 0:01:20]}  Ra3 {[%clk 0:00:28]} 35. Nd4 {[%clk 0:01:20]}  Rc3 {[%clk 0:00:25]} 36. Rc1 {[%clk 0:01:20]}  Rd3 {[%clk 0:00:25]} 37. Kf2 {[%clk 0:01:19]}  Nf6 {[%clk 0:00:21]} 38. g5 {[%clk 0:01:18]}  Ne4+ {[%clk 0:00:20]} 39. Bxe4 {[%clk 0:01:18]}  dxe4 {[%clk 0:00:21]} 40. Red1 {[%clk 0:01:18]}  Ra3 {[%clk 0:00:19]} 41. Ra1 {[%clk 0:01:17]}  Rc3 {[%clk 0:00:18]} 42. Rdc1 {[%clk 0:01:18]}  Rd3 {[%clk 0:00:18]} 43. Ra7 {[%clk 0:01:16]}  Ke8 {[%clk 0:00:14]} 44. bxc6 {[%clk 0:01:16]} 1-0


[Site "https://www.chess.com"]

[Event "Titled Tuesday Blitz October 19 2021"]
[White "Shtembuliak, Evgeny"]
[Black "Ovetchkin, Roman"]
[WhiteFideId "14113325"]
[BlackFideId "4119991"]
[WhiteElo "2504"]
[BlackElo "2432"]
[Result "0-1"]
[Round "07"]
[TimeControl "180+1"]
[Date "2021.10.19"]
[WhiteClock "0:00:17"]
[BlackClock "0:00:24"]

1. e4 {[%clk 0:03:00]}  c6 {[%clk 0:02:54]} 2. d4 {[%clk 0:03:00]}  d5 {[%clk 0:02:54]} 3. e5 {[%clk 0:03:00]}  Bf5 {[%clk 0:02:53]} 4. h4 {[%clk 0:03:01]}  h6 {[%clk 0:02:49]} 5. g4 {[%clk 0:02:59]}  Bd7 {[%clk 0:02:49]} 6. h5 {[%clk 0:02:59]}  e6 {[%clk 0:02:48]} 7. f4 {[%clk 0:02:58]}  c5 {[%clk 0:02:49]} 8. c3 {[%clk 0:02:58]}  Nc6 {[%clk 0:02:48]} 9. Nf3 {[%clk 0:02:58]}  Qb6 {[%clk 0:02:43]} 10. Kf2 {[%clk 0:02:58]}  Rc8 {[%clk 0:02:40]} 11. Kg3 {[%clk 0:02:54]}  cxd4 {[%clk 0:02:21]} 12. cxd4 {[%clk 0:02:55]}  Nxd4 {[%clk 0:02:21]} 13. Nxd4 {[%clk 0:02:50]}  Rxc1 {[%clk 0:02:21]} 14. Qxc1 {[%clk 0:02:51]}  Qxd4 {[%clk 0:02:21]} 15. Qc3 {[%clk 0:02:40]}  Bc5 {[%clk 0:02:18]} 16. Qxd4 {[%clk 0:02:34]}  Bxd4 {[%clk 0:02:19]} 17. Nc3 {[%clk 0:02:32]}  f6 {[%clk 0:02:20]} 18. Re1 {[%clk 0:01:27]}  fxe5 {[%clk 0:02:17]} 19. fxe5 {[%clk 0:01:26]}  Ne7 {[%clk 0:02:07]} 20. Nb5 {[%clk 0:01:20]}  Bxb5 {[%clk 0:02:06]} 21. Bxb5+ {[%clk 0:01:21]}  Kd8 {[%clk 0:02:06]} 22. Re2 {[%clk 0:01:19]}  a6 {[%clk 0:02:06]} 23. Ba4 {[%clk 0:01:19]}  b5 {[%clk 0:02:06]} 24. Bb3 {[%clk 0:01:17]}  Nc6 {[%clk 0:02:05]} 25. Rhe1 {[%clk 0:01:18]}  Rf8 {[%clk 0:02:00]} 26. a3 {[%clk 0:01:09]}  Kc7 {[%clk 0:01:56]} 27. Ba2 {[%clk 0:01:09]}  a5 {[%clk 0:01:56]} 28. Bb1 {[%clk 0:01:09]}  Kb6 {[%clk 0:01:52]} 29. Bd3 {[%clk 0:01:09]}  a4 {[%clk 0:01:47]} 30. g5 {[%clk 0:01:05]}  hxg5 {[%clk 0:01:37]} 31. Kg4 {[%clk 0:01:06]}  Rf4+ {[%clk 0:00:58]} 32. Kxg5 {[%clk 0:01:06]}  Rf3 {[%clk 0:00:59]} 33. Bb1 {[%clk 0:01:04]}  Rb3 {[%clk 0:00:55]} 34. Kg6 {[%clk 0:01:01]}  Bxb2 {[%clk 0:00:51]} 35. Kxg7 {[%clk 0:00:44]}  Rg3+ {[%clk 0:00:44]} 36. Bg6 {[%clk 0:00:43]}  Bc3 {[%clk 0:00:42]} 37. h6 {[%clk 0:00:40]}  Ne7 {[%clk 0:00:41]} 38. Rh1 {[%clk 0:00:28]}  Nxg6 {[%clk 0:00:38]} 39. Kf6 {[%clk 0:00:24]}  b4 {[%clk 0:00:26]} 40. axb4 {[%clk 0:00:22]}  a3 {[%clk 0:00:26]} 41. h7 {[%clk 0:00:22]}  Bb2 {[%clk 0:00:26]} 42. Re3 {[%clk 0:00:20]}  Rxe3 {[%clk 0:00:24]} 43. Kxg6 {[%clk 0:00:20]}  Bxe5 {[%clk 0:00:24]} 44. Kf7 {[%clk 0:00:18]}  a2 {[%clk 0:00:24]} 45. Kxe6 {[%clk 0:00:17]}  a1=Q {[%clk 0:00:24]} 0-1


[Site "https://www.chess.com"]

[Event "Titled Tuesday Blitz October 19 2021"]
[White "Tang, Andrew"]
[Black "Zhigalko, Sergei"]
[WhiteFideId "2059630"]
[BlackFideId "13502956"]
[WhiteElo "2588"]
[BlackElo "2662"]
[Result "1-0"]
[Round "07"]
[TimeControl "180+1"]
[Date "2021.10.19"]
[WhiteClock "0:00:06"]
[BlackClock "0:00:04"]

1. d4 {[%clk 0:03:00]}  Nf6 {[%clk 0:02:59]} 2. c4 {[%clk 0:02:55]}  e6 {[%clk 0:02:59]} 3. Nc3 {[%clk 0:02:55]}  Bb4 {[%clk 0:02:59]} 4. Qc2 {[%clk 0:02:56]}  O-O {[%clk 0:02:56]} 5. Nf3 {[%clk 0:02:56]}  d6 {[%clk 0:02:52]} 6. g3 {[%clk 0:02:56]}  b6 {[%clk 0:02:51]} 7. Bg2 {[%clk 0:02:54]}  Bb7 {[%clk 0:02:51]} 8. O-O {[%clk 0:02:54]}  Bxc3 {[%clk 0:02:47]} 9. Qxc3 {[%clk 0:02:55]}  Nbd7 {[%clk 0:02:47]} 10. Rd1 {[%clk 0:02:55]}  h6 {[%clk 0:02:45]} 11. b4 {[%clk 0:02:56]}  a5 {[%clk 0:02:42]} 12. b5 {[%clk 0:02:56]}  Re8 {[%clk 0:02:42]} 13. Ba3 {[%clk 0:02:43]}  Qb8 {[%clk 0:02:29]} 14. Bh3 {[%clk 0:01:43]}  Qa7 {[%clk 0:02:20]} 15. Rac1 {[%clk 0:01:35]}  Rad8 {[%clk 0:02:17]} 16. Nd2 {[%clk 0:01:30]}  Qa8 {[%clk 0:01:53]} 17. f3 {[%clk 0:01:07]}  e5 {[%clk 0:01:53]} 18. e4 {[%clk 0:01:01]}  exd4 {[%clk 0:01:51]} 19. Qxd4 {[%clk 0:01:01]}  Nc5 {[%clk 0:01:05]} 20. Re1 {[%clk 0:00:39]}  Bc8 {[%clk 0:00:50]} 21. Bg2 {[%clk 0:00:36]}  Be6 {[%clk 0:00:51]} 22. Bb2 {[%clk 0:00:32]}  Qc8 {[%clk 0:00:50]} 23. Nf1 {[%clk 0:00:21]}  Bh3 {[%clk 0:00:40]} 24. Ne3 {[%clk 0:00:20]}  Bxg2 {[%clk 0:00:40]} 25. Kxg2 {[%clk 0:00:21]}  Ne6 {[%clk 0:00:29]} 26. Qc3 {[%clk 0:00:21]}  Nd7 {[%clk 0:00:29]} 27. Nf5 {[%clk 0:00:20]}  f6 {[%clk 0:00:28]} 28. Rcd1 {[%clk 0:00:18]}  Ndc5 {[%clk 0:00:26]} 29. Qd2 {[%clk 0:00:18]}  Qd7 {[%clk 0:00:21]} 30. h4 {[%clk 0:00:16]}  Qf7 {[%clk 0:00:21]} 31. Re2 {[%clk 0:00:13]}  Kh7 {[%clk 0:00:16]} 32. Qc2 {[%clk 0:00:10]}  Kg8 {[%clk 0:00:16]} 33. Kh2 {[%clk 0:00:08]}  Nd7 {[%clk 0:00:13]} 34. Kg2 {[%clk 0:00:07]}  Ne5 {[%clk 0:00:12]} 35. Bc1 {[%clk 0:00:06]}  Kh8 {[%clk 0:00:10]} 36. Be3 {[%clk 0:00:05]}  Nf8 {[%clk 0:00:09]} 37. Bc1 {[%clk 0:00:05]}  Qxc4 {[%clk 0:00:09]} 38. Qxc4 {[%clk 0:00:05]}  Nxc4 {[%clk 0:00:10]} 39. Rc2 {[%clk 0:00:06]}  d5 {[%clk 0:00:02]} 40. exd5 {[%clk 0:00:06]}  Nd6 {[%clk 0:00:03]} 41. Nd4 {[%clk 0:00:06]}  Rd7 {[%clk 0:00:02]} 42. Bf4 {[%clk 0:00:07]}  Ng6 {[%clk 0:00:02]} 43. Bxd6 {[%clk 0:00:05]}  Rxd6 {[%clk 0:00:03]} 44. Nf5 {[%clk 0:00:03]}  Rd7 {[%clk 0:00:04]} 45. f4 {[%clk 0:00:04]}  Red8 {[%clk 0:00:04]} 46. Rcd2 {[%clk 0:00:01]}  Ne7 {[%clk 0:00:04]} 47. Ne3 {[%clk 0:00:02]}  Nc8 {[%clk 0:00:04]} 48. Kf3 {[%clk 0:00:02]}  Nd6 {[%clk 0:00:05]} 49. a4 {[%clk 0:00:03]}  Nb7 {[%clk 0:00:05]} 50. Rc2 {[%clk 0:00:03]}  Nc5 {[%clk 0:00:05]} 51. Rc4 {[%clk 0:00:04]}  Re8 {[%clk 0:00:06]} 52. Rxc5 {[%clk 0:00:04]}  bxc5 {[%clk 0:00:06]} 53. Rc1 {[%clk 0:00:05]}  Rde7 {[%clk 0:00:05]} 54. Nf5 {[%clk 0:00:05]}  Re2 {[%clk 0:00:06]} 55. Rxc5 {[%clk 0:00:06]}  g6 {[%clk 0:00:06]} 56. Nxh6 {[%clk 0:00:04]}  f5 {[%clk 0:00:01]} 57. Nf7+ {[%clk 0:00:04]}  Kg7 {[%clk 0:00:01]} 58. Ne5 {[%clk 0:00:05]}  R8xe5 {[%clk 0:00:01]} 59. fxe5 {[%clk 0:00:06]}  Rxe5 {[%clk 0:00:01]} 60. Rxc7+ {[%clk 0:00:07]}  Kf6 {[%clk 0:00:02]} 61. Rc6+ {[%clk 0:00:05]}  Kf7 {[%clk 0:00:01]} 62. d6 {[%clk 0:00:04]}  Rd5 {[%clk 0:00:01]} 63. b6 {[%clk 0:00:04]}  Ke6 {[%clk 0:00:01]} 64. Kf4 {[%clk 0:00:03]}  Rd4+ {[%clk 0:00:01]} 65. Kg5 {[%clk 0:00:03]}  Rg4+ {[%clk 0:00:02]} 66. Kh6 {[%clk 0:00:04]}  Rxg3 {[%clk 0:00:02]} 67. d7+ {[%clk 0:00:02]}  Kxd7 {[%clk 0:00:03]} 68. Rxg6 {[%clk 0:00:02]}  Rb3 {[%clk 0:00:03]} 69. Kg5 {[%clk 0:00:02]}  Rb4 {[%clk 0:00:02]} 70. h5 {[%clk 0:00:03]}  f4 {[%clk 0:00:02]} 71. h6 {[%clk 0:00:03]}  f3 {[%clk 0:00:03]} 72. h7 {[%clk 0:00:03]}  f2 {[%clk 0:00:03]} 73. Rf6 {[%clk 0:00:04]}  Rxb6 {[%clk 0:00:02]} 74. h8=Q {[%clk 0:00:04]}  f1=Q {[%clk 0:00:02]} 75. Rxf1 {[%clk 0:00:04]}  Kc6 {[%clk 0:00:02]} 76. Qd4 {[%clk 0:00:04]}  Kb7 {[%clk 0:00:03]} 77. Rf7+ {[%clk 0:00:04]}  Ka6 {[%clk 0:00:04]} 78. Rf6 {[%clk 0:00:05]}  Ka7 {[%clk 0:00:05]} 79. Qxb6+ {[%clk 0:00:05]}  Ka8 {[%clk 0:00:04]} 80. Rf8# {[%clk 0:00:06]} 1-0


[Site "https://www.chess.com"]

[Event "Titled Tuesday Blitz October 19 2021"]
[White "Aggelis, Nikolaos"]
[Black "Samadov, Read"]
[WhiteFideId "4213220"]
[BlackFideId "13417444"]
[WhiteElo "2154"]
[BlackElo "2084"]
[Result "1/2-1/2"]
[Round "08"]
[TimeControl "180+1"]
[Date "2021.10.19"]
[WhiteClock "0:00:06"]
[BlackClock "0:00:02"]

1. d4 {[%clk 0:03:00]}  Nf6 {[%clk 0:02:59]} 2. g3 {[%clk 0:03:01]}  d5 {[%clk 0:02:58]} 3. Nf3 {[%clk 0:03:00]}  e6 {[%clk 0:02:55]} 4. Bg2 {[%clk 0:03:00]}  b5 {[%clk 0:02:55]} 5. O-O {[%clk 0:03:00]}  Bb7 {[%clk 0:02:55]} 6. b3 {[%clk 0:03:01]}  Nbd7 {[%clk 0:02:53]} 7. c4 {[%clk 0:03:01]}  bxc4 {[%clk 0:02:51]} 8. bxc4 {[%clk 0:03:02]}  dxc4 {[%clk 0:02:49]} 9. Na3 {[%clk 0:03:01]}  Nb6 {[%clk 0:02:45]} 10. Nxc4 {[%clk 0:02:59]}  Be7 {[%clk 0:02:33]} 11. Na5 {[%clk 0:02:52]}  Be4 {[%clk 0:02:31]} 12. Bf4 {[%clk 0:02:40]}  O-O {[%clk 0:02:29]} 13. Rc1 {[%clk 0:02:40]}  Nbd5 {[%clk 0:02:10]} 14. Nc6 {[%clk 0:02:36]}  Qe8 {[%clk 0:02:10]} 15. Nxe7+ {[%clk 0:02:15]}  Qxe7 {[%clk 0:02:10]} 16. Ne5 {[%clk 0:02:13]}  Bxg2 {[%clk 0:02:07]} 17. Kxg2 {[%clk 0:02:14]}  Qa3 {[%clk 0:01:26]} 18. Qb3 {[%clk 0:01:52]}  Qxb3 {[%clk 0:01:24]} 19. axb3 {[%clk 0:01:52]}  Rab8 {[%clk 0:01:20]} 20. Ra1 {[%clk 0:01:49]}  Rxb3 {[%clk 0:01:18]} 21. Rxa7 {[%clk 0:01:48]}  Rb2 {[%clk 0:01:16]} 22. Kf3 {[%clk 0:01:34]}  h6 {[%clk 0:01:15]} 23. h4 {[%clk 0:01:29]}  Rfb8 {[%clk 0:01:10]} 24. Nd3 {[%clk 0:01:26]}  R8b3 {[%clk 0:01:06]} 25. Bxc7 {[%clk 0:01:09]}  Ne4 {[%clk 0:00:56]} 26. Bf4 {[%clk 0:00:58]}  Ndc3 {[%clk 0:00:28]} 27. Nxb2 {[%clk 0:00:45]}  Rxb2 {[%clk 0:00:19]} 28. Re1 {[%clk 0:00:45]}  g5 {[%clk 0:00:18]} 29. hxg5 {[%clk 0:00:44]}  hxg5 {[%clk 0:00:19]} 30. Be3 {[%clk 0:00:44]}  Kg7 {[%clk 0:00:16]} 31. Ra3 {[%clk 0:00:26]}  Kg6 {[%clk 0:00:14]} 32. Rc1 {[%clk 0:00:23]}  g4+ {[%clk 0:00:11]} 33. Kxg4 {[%clk 0:00:21]}  Nxe2 {[%clk 0:00:09]} 34. Rc8 {[%clk 0:00:20]}  Ng1 {[%clk 0:00:05]} 35. Raa8 {[%clk 0:00:13]}  Nf6+ {[%clk 0:00:05]} 36. Kh4 {[%clk 0:00:11]}  Nf3+ {[%clk 0:00:04]} 37. Kh3 {[%clk 0:00:11]}  Kf5 {[%clk 0:00:04]} 38. Ra5+ {[%clk 0:00:09]}  Ke4 {[%clk 0:00:04]} 39. Rf8 {[%clk 0:00:06]}  Rb1 {[%clk 0:00:04]} 40. Rxf7 {[%clk 0:00:05]}  Rh1+ {[%clk 0:00:04]} 41. Kg2 {[%clk 0:00:05]}  Rg1+ {[%clk 0:00:05]} 42. Kh3 {[%clk 0:00:05]}  Rh1+ {[%clk 0:00:05]} 43. Kg2 {[%clk 0:00:05]}  Rh2+ {[%clk 0:00:05]} 44. Kf1 {[%clk 0:00:05]}  Rh1+ {[%clk 0:00:02]} 45. Kg2 {[%clk 0:00:06]} 1/2-1/2


[Site "https://www.chess.com"]

[Event "Titled Tuesday Blitz October 19 2021"]
[White "Aradhya, Garg"]
[Black "Salimova, Nurgyul"]
[WhiteFideId "25006746"]
[BlackFideId "2915138"]
[WhiteElo "2146"]
[BlackElo "2071"]
[Result "1-0"]
[Round "08"]
[TimeControl "180+1"]
[Date "2021.10.19"]
[WhiteClock "0:00:07"]
[BlackClock "0:00:03"]

1. d4 {[%clk 0:03:00]}  Nf6 {[%clk 0:03:00]} 2. c4 {[%clk 0:03:00]}  e6 {[%clk 0:03:00]} 3. Nf3 {[%clk 0:03:00]}  d5 {[%clk 0:03:01]} 4. Nc3 {[%clk 0:02:57]}  Be7 {[%clk 0:03:01]} 5. Bf4 {[%clk 0:02:57]}  O-O {[%clk 0:03:01]} 6. a3 {[%clk 0:02:57]}  c5 {[%clk 0:02:45]} 7. dxc5 {[%clk 0:02:56]}  dxc4 {[%clk 0:02:45]} 8. e4 {[%clk 0:02:52]}  Qa5 {[%clk 0:02:39]} 9. Bxc4 {[%clk 0:02:49]}  Nxe4 {[%clk 0:02:37]} 10. b4 {[%clk 0:02:49]}  Nxc3 {[%clk 0:02:37]} 11. Qb3 {[%clk 0:02:44]}  Qa4 {[%clk 0:02:19]} 12. Qxc3 {[%clk 0:02:43]}  Nc6 {[%clk 0:02:16]} 13. O-O {[%clk 0:02:31]}  Bf6 {[%clk 0:02:16]} 14. Ne5 {[%clk 0:02:30]}  Nxe5 {[%clk 0:02:05]} 15. Bxe5 {[%clk 0:02:30]}  Bxe5 {[%clk 0:02:05]} 16. Qxe5 {[%clk 0:02:31]}  Bd7 {[%clk 0:02:06]} 17. Rfd1 {[%clk 0:01:51]}  Bc6 {[%clk 0:02:03]} 18. Rd3 {[%clk 0:01:40]}  a5 {[%clk 0:01:38]} 19. Rg3 {[%clk 0:00:50]}  g6 {[%clk 0:01:38]} 20. h4 {[%clk 0:00:50]}  Qc2 {[%clk 0:00:57]} 21. Bd3 {[%clk 0:00:44]}  Qd2 {[%clk 0:00:58]} 22. b5 {[%clk 0:00:42]}  Bd5 {[%clk 0:00:52]} 23. h5 {[%clk 0:00:42]}  Qh6 {[%clk 0:00:51]} 24. hxg6 {[%clk 0:00:41]}  hxg6 {[%clk 0:00:52]} 25. Qf6 {[%clk 0:00:29]}  Qg7 {[%clk 0:00:52]} 26. Qxg7+ {[%clk 0:00:28]}  Kxg7 {[%clk 0:00:52]} 27. Be2 {[%clk 0:00:27]}  Rac8 {[%clk 0:00:51]} 28. Rc3 {[%clk 0:00:26]}  Rfd8 {[%clk 0:00:50]} 29. f3 {[%clk 0:00:26]}  a4 {[%clk 0:00:45]} 30. Kf2 {[%clk 0:00:21]}  Bb3 {[%clk 0:00:44]} 31. Bd3 {[%clk 0:00:19]}  Kf6 {[%clk 0:00:41]} 32. Rac1 {[%clk 0:00:19]}  Ke7 {[%clk 0:00:39]} 33. Ke3 {[%clk 0:00:19]}  Rd5 {[%clk 0:00:38]} 34. Be4 {[%clk 0:00:19]}  Rd7 {[%clk 0:00:38]} 35. c6 {[%clk 0:00:17]}  bxc6 {[%clk 0:00:38]} 36. bxc6 {[%clk 0:00:15]}  Rdc7 {[%clk 0:00:38]} 37. f4 {[%clk 0:00:15]}  Kd6 {[%clk 0:00:24]} 38. Rd3+ {[%clk 0:00:14]}  Bd5 {[%clk 0:00:18]} 39. Rcd1 {[%clk 0:00:14]}  Rxc6 {[%clk 0:00:16]} 40. Bxd5 {[%clk 0:00:14]}  exd5 {[%clk 0:00:17]} 41. Rxd5+ {[%clk 0:00:14]}  Ke6 {[%clk 0:00:17]} 42. Ra5 {[%clk 0:00:14]}  Rc3+ {[%clk 0:00:17]} 43. Rd3 {[%clk 0:00:14]}  Rxd3+ {[%clk 0:00:12]} 44. Kxd3 {[%clk 0:00:15]}  Rb8 {[%clk 0:00:13]} 45. Rxa4 {[%clk 0:00:13]}  Rb2 {[%clk 0:00:14]} 46. g4 {[%clk 0:00:13]}  Rg2 {[%clk 0:00:13]} 47. Re4+ {[%clk 0:00:12]}  Kf6 {[%clk 0:00:13]} 48. g5+ {[%clk 0:00:12]}  Kf5 {[%clk 0:00:13]} 49. a4 {[%clk 0:00:11]}  Ra2 {[%clk 0:00:11]} 50. Rb4 {[%clk 0:00:11]}  Ra3+ {[%clk 0:00:10]} 51. Kc2 {[%clk 0:00:09]}  Kg4 {[%clk 0:00:07]} 52. Kb2 {[%clk 0:00:09]}  Re3 {[%clk 0:00:06]} 53. a5 {[%clk 0:00:09]}  Re6 {[%clk 0:00:06]} 54. Ra4 {[%clk 0:00:08]}  Ra6 {[%clk 0:00:02]} 55. Kc3 {[%clk 0:00:08]}  Kf5 {[%clk 0:00:03]} 56. Kb4 {[%clk 0:00:07]}  Ra8 {[%clk 0:00:03]} 57. Kb5 {[%clk 0:00:07]}  Ke6 {[%clk 0:00:04]} 58. a6 {[%clk 0:00:07]}  Kd6 {[%clk 0:00:04]} 59. a7 {[%clk 0:00:07]}  Kc7 {[%clk 0:00:04]} 60. Ka6 {[%clk 0:00:07]}  Kd6 {[%clk 0:00:03]} 61. Kb7 {[%clk 0:00:07]} 1-0


[Site "https://www.chess.com"]

[Event "Titled Tuesday Blitz October 19 2021"]
[White "Bordi, Kevin"]
[Black "Hjartarson, Johann"]
[WhiteFideId "621862"]
[BlackFideId "2300044"]
[WhiteElo "2739"]
[BlackElo "2502"]
[Result "0-1"]
[Round "08"]
[TimeControl "180+1"]
[Date "2021.10.19"]
[WhiteClock "0:00:19"]
[BlackClock "0:01:06"]

1. g4 {[%clk 0:03:00]}  d5 {[%clk 0:02:58]} 2. Bg2 {[%clk 0:03:00]}  c6 {[%clk 0:02:58]} 3. g5 {[%clk 0:02:52]}  g6 {[%clk 0:02:57]} 4. h4 {[%clk 0:02:52]}  h5 {[%clk 0:02:51]} 5. d4 {[%clk 0:02:51]}  Bg7 {[%clk 0:02:48]} 6. Bf4 {[%clk 0:02:50]}  Nd7 {[%clk 0:02:46]} 7. e3 {[%clk 0:02:49]}  e5 {[%clk 0:02:45]} 8. dxe5 {[%clk 0:02:49]}  Nxe5 {[%clk 0:02:45]} 9. c3 {[%clk 0:02:47]}  Ne7 {[%clk 0:02:44]} 10. Nf3 {[%clk 0:02:47]}  Bg4 {[%clk 0:02:29]} 11. Nbd2 {[%clk 0:02:17]}  Nd3+ {[%clk 0:02:27]} 12. Kf1 {[%clk 0:02:17]}  Nxf4 {[%clk 0:02:25]} 13. exf4 {[%clk 0:02:17]}  O-O {[%clk 0:02:26]} 14. Qb3 {[%clk 0:02:15]}  Qd6 {[%clk 0:02:16]} 15. Ne5 {[%clk 0:01:33]}  Bxe5 {[%clk 0:02:05]} 16. fxe5 {[%clk 0:01:34]}  Qxe5 {[%clk 0:02:05]} 17. Re1 {[%clk 0:01:35]}  Qd6 {[%clk 0:02:04]} 18. Qxb7 {[%clk 0:01:19]}  Nf5 {[%clk 0:02:03]} 19. Qb4 {[%clk 0:01:19]}  c5 {[%clk 0:01:57]} 20. Qb7 {[%clk 0:01:19]}  Qf4 {[%clk 0:01:49]} 21. Nb3 {[%clk 0:01:02]}  Ng3+ {[%clk 0:01:43]} 22. Kg1 {[%clk 0:01:03]}  Nxh1 {[%clk 0:01:41]} 23. Bxh1 {[%clk 0:01:03]}  Bf3 {[%clk 0:01:37]} 24. Bxf3 {[%clk 0:00:54]}  Qxf3 {[%clk 0:01:36]} 25. Re3 {[%clk 0:00:54]}  Qg4+ {[%clk 0:01:24]} 26. Rg3 {[%clk 0:00:54]}  Qd1+ {[%clk 0:01:20]} 27. Kg2 {[%clk 0:00:52]}  Rae8 {[%clk 0:01:18]} 28. Nxc5 {[%clk 0:00:30]}  Re1 {[%clk 0:01:15]} 29. Nd3 {[%clk 0:00:19]}  Rg1+ {[%clk 0:01:13]} 30. Kh2 {[%clk 0:00:19]}  Rh1+ {[%clk 0:01:06]} 31. Kg2 {[%clk 0:00:19]}  Qf1+ {[%clk 0:01:06]} 0-1


[Site "https://www.chess.com"]

[Event "Titled Tuesday Blitz October 19 2021"]
[White "Bortnyk, Olexandr"]
[Black "Shipov, Sergei"]
[WhiteFideId "14120828"]
[BlackFideId "4113624"]
[WhiteElo "2723"]
[BlackElo "2785"]
[Result "0-1"]
[Round "08"]
[TimeControl "180+1"]
[Date "2021.10.19"]
[WhiteClock "0:00:01"]
[BlackClock "0:00:18"]

1. e4 {[%clk 0:03:00]}  e6 {[%clk 0:02:59]} 2. d4 {[%clk 0:03:00]}  d5 {[%clk 0:03:00]} 3. Nc3 {[%clk 0:03:01]}  h6 {[%clk 0:02:59]} 4. Bd3 {[%clk 0:02:55]}  Nc6 {[%clk 0:02:58]} 5. Nf3 {[%clk 0:02:51]}  Nb4 {[%clk 0:02:58]} 6. Be2 {[%clk 0:02:43]}  Nf6 {[%clk 0:02:58]} 7. e5 {[%clk 0:02:41]}  Ne4 {[%clk 0:02:58]} 8. O-O {[%clk 0:02:39]}  Be7 {[%clk 0:02:55]} 9. Nxe4 {[%clk 0:02:37]}  dxe4 {[%clk 0:02:55]} 10. Nd2 {[%clk 0:02:38]}  c5 {[%clk 0:02:46]} 11. dxc5 {[%clk 0:02:31]}  e3 {[%clk 0:02:44]} 12. Ne4 {[%clk 0:01:18]}  Qd5 {[%clk 0:02:06]} 13. Qxd5 {[%clk 0:01:03]}  exd5 {[%clk 0:02:06]} 14. Nd6+ {[%clk 0:01:04]}  Bxd6 {[%clk 0:02:05]} 15. cxd6 {[%clk 0:01:02]}  Nxc2 {[%clk 0:02:04]} 16. Rb1 {[%clk 0:00:51]}  Nd4 {[%clk 0:02:03]} 17. Bd3 {[%clk 0:00:45]}  Nc6 {[%clk 0:01:35]} 18. Bxe3 {[%clk 0:00:37]}  Nxe5 {[%clk 0:01:34]} 19. Bc2 {[%clk 0:00:33]}  Be6 {[%clk 0:01:30]} 20. f4 {[%clk 0:00:27]}  Nc4 {[%clk 0:01:30]} 21. Bc5 {[%clk 0:00:20]}  b6 {[%clk 0:01:17]} 22. Ba4+ {[%clk 0:00:15]}  Kd8 {[%clk 0:01:15]} 23. Bd4 {[%clk 0:00:15]}  f6 {[%clk 0:01:15]} 24. Rfe1 {[%clk 0:00:14]}  Bd7 {[%clk 0:01:13]} 25. Bxd7 {[%clk 0:00:13]}  Kxd7 {[%clk 0:01:13]} 26. Re7+ {[%clk 0:00:14]}  Kxd6 {[%clk 0:01:13]} 27. Rxg7 {[%clk 0:00:15]}  Nd2 {[%clk 0:01:08]} 28. Rc1 {[%clk 0:00:09]}  Rac8 {[%clk 0:01:04]} 29. Rxc8 {[%clk 0:00:04]}  Rxc8 {[%clk 0:01:04]} 30. g4 {[%clk 0:00:05]}  Nf3+ {[%clk 0:01:03]} 31. Kg2 {[%clk 0:00:04]}  Nxd4 {[%clk 0:01:04]} 32. Rxa7 {[%clk 0:00:04]}  Rc2+ {[%clk 0:01:03]} 33. Kg3 {[%clk 0:00:05]}  Rxb2 {[%clk 0:01:03]} 34. Rf7 {[%clk 0:00:05]}  Ke6 {[%clk 0:01:03]} 35. Rb7 {[%clk 0:00:05]}  Ne2+ {[%clk 0:01:00]} 36. Kf3 {[%clk 0:00:05]}  Ng1+ {[%clk 0:01:00]} 37. Ke3 {[%clk 0:00:05]}  Nh3 {[%clk 0:00:55]} 38. f5+ {[%clk 0:00:05]}  Kd6 {[%clk 0:00:50]} 39. Rf7 {[%clk 0:00:06]}  Kc5 {[%clk 0:00:42]} 40. Rc7+ {[%clk 0:00:05]}  Kb5 {[%clk 0:00:41]} 41. Rf7 {[%clk 0:00:05]}  Rxh2 {[%clk 0:00:35]} 42. Rxf6 {[%clk 0:00:05]}  Ng5 {[%clk 0:00:36]} 43. Rg6 {[%clk 0:00:04]}  Kc5 {[%clk 0:00:36]} 44. f6 {[%clk 0:00:04]}  d4+ {[%clk 0:00:36]} 45. Kd3 {[%clk 0:00:04]}  Rh3+ {[%clk 0:00:35]} 46. Kc2 {[%clk 0:00:05]}  Kc4 {[%clk 0:00:36]} 47. Rg8 {[%clk 0:00:04]}  Rh2+ {[%clk 0:00:36]} 48. Kb1 {[%clk 0:00:04]}  d3 {[%clk 0:00:32]} 49. Rc8+ {[%clk 0:00:05]}  Kd4 {[%clk 0:00:31]} 50. Rd8+ {[%clk 0:00:05]}  Ke3 {[%clk 0:00:32]} 51. Re8+ {[%clk 0:00:06]}  Kd2 {[%clk 0:00:28]} 52. Kb2 {[%clk 0:00:06]}  Rf2 {[%clk 0:00:28]} 53. f7 {[%clk 0:00:04]}  Rxf7 {[%clk 0:00:27]} 54. Rh8 {[%clk 0:00:04]}  Rf6 {[%clk 0:00:27]} 55. Re8 {[%clk 0:00:04]}  Kd1 {[%clk 0:00:26]} 56. a4 {[%clk 0:00:04]}  d2 {[%clk 0:00:26]} 57. Re3 {[%clk 0:00:04]}  Rf3 {[%clk 0:00:24]} 58. Re5 {[%clk 0:00:05]}  Rf4 {[%clk 0:00:23]} 59. Rd5 {[%clk 0:00:04]}  Ke2 {[%clk 0:00:22]} 60. Kc2 {[%clk 0:00:04]}  Rc4+ {[%clk 0:00:21]} 61. Kb3 {[%clk 0:00:05]}  Rxg4 {[%clk 0:00:19]} 62. Kc2 {[%clk 0:00:02]}  Ne4 {[%clk 0:00:19]} 63. a5 {[%clk 0:00:02]}  bxa5 {[%clk 0:00:18]} 64. Rd4 {[%clk 0:00:02]}  h5 {[%clk 0:00:18]} 65. Rd8 {[%clk 0:00:02]}  h4 {[%clk 0:00:18]} 66. Kb2 {[%clk 0:00:01]}  h3 {[%clk 0:00:18]} 67. Kc2 {[%clk 0:00:01]}  h2 {[%clk 0:00:19]} 68. Kb2 {[%clk 0:00:01]}  h1=Q {[%clk 0:00:19]} 69. Rd4 {[%clk 0:00:01]}  Ke3 {[%clk 0:00:18]} 0-1


[Site "https://www.chess.com"]